[Event "*** Titled Tuesday 3|2 Blitz"]
[Site "Chess.com"]
[Date "2015.03.03"]
[Round "2"]
[White "iFrancisco"]
[Black "AUSSIE_PINOY"]
[Result "0-1"]
[WhiteElo "2201"]
[BlackElo "2221"]
[TimeControl "180+2"]
[EndTime "11:23:56 PST"]
[Termination "AUSSIE_PINOY won by resignation"]

1. e4 {[%clk 0:02:39.1]} 1... c5 {[%clk 0:02:58.2]} 2. Nf3 {[%clk 0:02:38.1]}
2... a6 {[%clk 0:02:59.3]} 3. d4 {[%clk 0:02:38.8]} 3... cxd4 {[%clk 0:03:00.6]}
4. Nxd4 {[%clk 0:02:40.7]} 4... e6 {[%clk 0:03:01.9]} 5. Bd3 {[%clk 0:02:39.7]}
5... Nc6 {[%clk 0:03:01.3]} 6. Nxc6 {[%clk 0:02:39.4]} 6... bxc6 {[%clk
0:03:02.4]} 7. c4 {[%clk 0:02:35.8]} 7... c5 {[%clk 0:03:02.9]} 8. O-O {[%clk
0:02:36.3]} 8... Qc7 {[%clk 0:03:04.2]} 9. Nc3 {[%clk 0:02:37]} 9... Bb7 {[%clk
0:03:05.5]} 10. f4 {[%clk 0:02:38]} 10... h5 {[%clk 0:03:06]} 11. e5 {[%clk
0:02:33.7]} 11... h4 {[%clk 0:03:06]} 12. Be4 {[%clk 0:02:32.6]} 12... Be7
{[%clk 0:03:06]} 13. Qf3 {[%clk 0:02:32.9]} 13... Rb8 {[%clk 0:03:06.1]} 14. b3
{[%clk 0:02:33.3]} 14... Nh6 {[%clk 0:03:06.9]} 15. Be3 {[%clk 0:02:27.3]} 15...
g6 {[%clk 0:03:06.5]} 16. Rad1 {[%clk 0:02:22.8]} 16... Nf5 {[%clk 0:03:07.4]}
17. Bf2 {[%clk 0:02:23.7]} 17... Rg8 {[%clk 0:02:48.8]} 18. Rd3 {[%clk
0:02:04.3]} 18... g5 {[%clk 0:02:49.3]} 19. Bxb7 {[%clk 0:02:05.2]} 19... g4
{[%clk 0:02:43.8]} 20. Qe2 {[%clk 0:01:53.2]} 20... Qxb7 {[%clk 0:02:43.3]} 21.
Ne4 {[%clk 0:01:53.3]} 21... Qc6 {[%clk 0:02:12.2]} 22. Rfd1 {[%clk 0:01:52.4]}
22... Rb7 {[%clk 0:02:13.1]} 23. Kf1 {[%clk 0:01:34.9]} 23... Rg6 {[%clk
0:02:10.9]} 24. Bg1 {[%clk 0:01:31.3]} 24... g3 {[%clk 0:01:46.8]} 25. h3 {[%clk
0:01:32]} 25... a5 {[%clk 0:01:46.5]} 26. a4 {[%clk 0:01:27.3]} 26... Kf8 {[%clk
0:01:33.7]} 27. Qf3 {[%clk 0:01:23.6]} 27... Kg7 {[%clk 0:01:22.3]} 28. R1d2
{[%clk 0:01:18.5]} 28... Kh6 {[%clk 0:01:07.6]} 29. Ke2 {[%clk 0:00:51.8]} 29...
Rg8 {[%clk 0:01:07.3]} 30. Kd1 {[%clk 0:00:52.9]} 30... Rgb8 {[%clk 0:00:59.8]}
31. Kc2 {[%clk 0:00:54.1]} 31... Rb4 {[%clk 0:00:40.3]} 32. Nxc5 {[%clk
0:00:52.1]} 32... Qb6 {[%clk 0:00:24.2]} 33. Nxd7 {[%clk 0:00:51.8]} 33... Qxg1
{[%clk 0:00:24.2]} 34. Nxb8 {[%clk 0:00:44.3]} 34... Rxb8 {[%clk 0:00:25.2]} 35.
Rd1 {[%clk 0:00:43]} 35... Qc5 {[%clk 0:00:25.3]} 36. R1d2 {[%clk 0:00:40]}
36... Qa3 {[%clk 0:00:26.3]} 37. Kd1 {[%clk 0:00:41.4]} 37... Bb4 {[%clk
0:00:26.5]} 38. Rc2 {[%clk 0:00:35.3]} 38... Qa1+ {[%clk 0:00:26.1]} 39. Rc1
{[%clk 0:00:36.6]} 39... Qa2 {[%clk 0:00:27.3]} 40. Qe2 {[%clk 0:00:35]} 40...
Qa3 {[%clk 0:00:24.2]} 41. Qc2 {[%clk 0:00:26.6]} 41... Bc5 {[%clk 0:00:24.1]}
42. Qc3 {[%clk 0:00:24.1]} 42... Kg6 {[%clk 0:00:17.4]} 43. Rc2 {[%clk
0:00:23.4]} 43... Qb4 {[%clk 0:00:15.2]} 44. Ke2 {[%clk 0:00:19.4]} 44... Qb7
{[%clk 0:00:16.2]} 45. Kf1 {[%clk 0:00:17.9]} 45... Qa7 {[%clk 0:00:16]} 46. Re2
{[%clk 0:00:17]} 46... Qb7 {[%clk 0:00:16.7]} 47. Qc2 {[%clk 0:00:18]} 47... Qc7
{[%clk 0:00:17.2]} 48. Rf3 {[%clk 0:00:14.5]} 48... Kg7 {[%clk 0:00:17.9]} 49.
Rd3 {[%clk 0:00:14.2]} 49... Qc6 {[%clk 0:00:18.3]} 50. Qd2 {[%clk 0:00:15.1]}
50... Rb4 {[%clk 0:00:18.7]} 51. Rd7 {[%clk 0:00:15.5]} 51... Ne3+ {[%clk
0:00:17.1]} 52. Rxe3 {[%clk 0:00:16.4]} 52... Bxe3 {[%clk 0:00:18.4]} 53. Qd3
{[%clk 0:00:17.2]} 53... Qb6 {[%clk 0:00:16.2]} 54. f5 {[%clk 0:00:14.8]} 54...
Rxb3 {[%clk 0:00:17.5]} 55. f6+ {[%clk 0:00:15.7]} 55... Kh6 {[%clk 0:00:18.8]}
56. Qe4 {[%clk 0:00:15.6]} 56... Rb1+ {[%clk 0:00:19.8]} 57. Ke2 {[%clk
0:00:17.1]} 57... Qb2+ {[%clk 0:00:20.5]} 58. Kf3 {[%clk 0:00:18.6]} 58... Qf2+
{[%clk 0:00:21.6]} 59. Kg4 {[%clk 0:00:20.1]} 59... Qe2+ {[%clk 0:00:22.9]} 60.
Qf3 {[%clk 0:00:21.4]} 60... Qxf3+ {[%clk 0:00:23.3]} 61. Kxf3 {[%clk
0:00:23.3]} 61... Bd4 {[%clk 0:00:23.7]} 62. Rxf7 {[%clk 0:00:24.8]} 62... Kg6
{[%clk 0:00:25.1]} 63. Rg7+ {[%clk 0:00:22.9]} 63... Kf5 {[%clk 0:00:26.4]} 64.
f7 {[%clk 0:00:20.5]} 64... Bc5 {[%clk 0:00:27]} 65. Rg8 {[%clk 0:00:20.1]}
65... Kxe5 {[%clk 0:00:27]} 66. f8=Q {[%clk 0:00:20.6]} 66... Rf1+ {[%clk
0:00:28.1]} 67. Kg4 {[%clk 0:00:22.1]} 67... Rxf8 {[%clk 0:00:28.8]} 68. Rg5+
{[%clk 0:00:23.6]} 68... Rf5 {[%clk 0:00:28.8]} 69. Rg7 {[%clk 0:00:25.2]} 69...
Rf4+ {[%clk 0:00:29.9]} 70. Kg5 {[%clk 0:00:24]} 70... Rxc4 {[%clk 0:00:30.7]}
71. Rb7 {[%clk 0:00:16.7]} 71... Rxa4 {[%clk 0:00:30.6]} 72. Kh5 {[%clk
0:00:16.4]} 72... Kd5 {[%clk 0:00:31.1]} 73. Rd7+ {[%clk 0:00:16.7]} 73... Bd6
{[%clk 0:00:31.7]} 74. Rd8 {[%clk 0:00:18.6]} 74... Rb4 {[%clk 0:00:32.7]} 75.
Ra8 {[%clk 0:00:20]} 75... a4 {[%clk 0:00:33.9]} 76. Kg6 {[%clk 0:00:21.4]}
76... Rf4 {[%clk 0:00:34.5]} 77. Kg5 {[%clk 0:00:22.3]} 77... a3 {[%clk
0:00:35.6]} 78. Ra5+ {[%clk 0:00:22.6]} 78... Kc6 {[%clk 0:00:36.3]} 79. Rxa3
{[%clk 0:00:20.2]} 79... Bxa3 {[%clk 0:00:34.8]} 80. Kxf4 {[%clk 0:00:21.1]}
80... Be7 {[%clk 0:00:35.8]} 81. Ke5 {[%clk 0:00:22.2]} 81... Kd7 {[%clk
0:00:37.1]} 0-1

[Event "*** Titled Tuesday 3|2 Blitz"]
[Site "Chess.com"]
[Date "2015.03.03"]
[Round "2"]
[White "pedromartinez91"]
[Black "IMRosen"]
[Result "1/2-1/2"]
[WhiteElo "2148"]
[BlackElo "2091"]
[TimeControl "180+2"]
[EndTime "11:28:50 PST"]
[Termination "Game drawn - insufficient material"]

1. e4 {[%clk 0:02:53.7]} 1... c5 {[%clk 0:02:58.4]} 2. Nf3 {[%clk 0:02:54.9]}
2... e6 {[%clk 0:02:59.9]} 3. c3 {[%clk 0:02:55.4]} 3... d5 {[%clk 0:03:00.6]}
4. exd5 {[%clk 0:02:55.9]} 4... Qxd5 {[%clk 0:03:02.5]} 5. d4 {[%clk 0:02:56.6]}
5... Nf6 {[%clk 0:03:04]} 6. Na3 {[%clk 0:02:56.5]} 6... Qd8 {[%clk 0:03:03]} 7.
Be2 {[%clk 0:02:55.5]} 7... Nc6 {[%clk 0:03:00.6]} 8. Nc2 {[%clk 0:02:55.8]}
8... cxd4 {[%clk 0:02:54.6]} 9. Ncxd4 {[%clk 0:02:56.4]} 9... Nxd4 {[%clk
0:02:51.3]} 10. Nxd4 {[%clk 0:02:57]} 10... Be7 {[%clk 0:02:44.6]} 11. O-O
{[%clk 0:02:51.8]} 11... O-O {[%clk 0:02:46]} 12. Bg5 {[%clk 0:02:52.4]} 12...
e5 {[%clk 0:02:28.4]} 13. Nf3 {[%clk 0:02:47.9]} 13... Qc7 {[%clk 0:02:28]} 14.
Bh4 {[%clk 0:02:42.8]} 14... Re8 {[%clk 0:02:12]} 15. Qa4 {[%clk 0:02:34.1]}
15... Bd7 {[%clk 0:02:09.6]} 16. Bb5 {[%clk 0:02:33.6]} 16... e4 {[%clk
0:01:40.4]} 17. Nd4 {[%clk 0:02:30.7]} 17... Bxb5 {[%clk 0:01:21.8]} 18. Qxb5
{[%clk 0:02:24.4]} 18... Ng4 {[%clk 0:01:03.7]} 19. Bg3 {[%clk 0:02:16.7]} 19...
Qc8 {[%clk 0:00:51.8]} 20. Nf5 {[%clk 0:01:55.8]} 20... Bc5 {[%clk 0:00:46.7]}
21. Nd6 {[%clk 0:01:20.9]} 21... Bxd6 {[%clk 0:00:47.5]} 22. Bxd6 {[%clk
0:01:21.8]} 22... a6 {[%clk 0:00:48.4]} 23. Qe2 {[%clk 0:01:20.6]} 23... Qe6
{[%clk 0:00:48.5]} 24. Bg3 {[%clk 0:01:20.7]} 24... f5 {[%clk 0:00:49]} 25. f3
{[%clk 0:01:18.3]} 25... Nf6 {[%clk 0:00:46.6]} 26. Bh4 {[%clk 0:01:18.1]} 26...
Rad8 {[%clk 0:00:23.9]} 27. Bxf6 {[%clk 0:01:17.8]} 27... Qxf6 {[%clk
0:00:25.4]} 28. fxe4 {[%clk 0:01:18.3]} 28... Qb6+ {[%clk 0:00:26.5]} 29. Qf2
{[%clk 0:01:17.5]} 29... Qxf2+ {[%clk 0:00:25.2]} 30. Rxf2 {[%clk 0:01:18.6]}
30... fxe4 {[%clk 0:00:20.7]} 31. Re2 {[%clk 0:01:19.5]} 31... e3 {[%clk
0:00:20.2]} 32. Rae1 {[%clk 0:01:21]} 32... Rd3 {[%clk 0:00:21.5]} 33. g3 {[%clk
0:01:21.7]} 33... g5 {[%clk 0:00:21.4]} 34. h3 {[%clk 0:01:22]} 34... h5 {[%clk
0:00:22.2]} 35. g4 {[%clk 0:01:22.4]} 35... hxg4 {[%clk 0:00:23.5]} 36. hxg4
{[%clk 0:01:23.4]} 36... Re4 {[%clk 0:00:25.2]} 37. Kh2 {[%clk 0:01:24.4]} 37...
Rxg4 {[%clk 0:00:15.3]} 38. Rxe3 {[%clk 0:01:25.1]} 38... Rd2+ {[%clk
0:00:13.2]} 39. R1e2 {[%clk 0:01:22.2]} 39... Rd7 {[%clk 0:00:10]} 40. Re8+
{[%clk 0:01:18.6]} 40... Kf7 {[%clk 0:00:11.2]} 41. R8e3 {[%clk 0:01:19.6]}
41... Kg6 {[%clk 0:00:07.2]} 42. Re6+ {[%clk 0:01:18.4]} 42... Kf7 {[%clk
0:00:08.7]} 43. R6e3 {[%clk 0:01:19.1]} 43... Rd6 {[%clk 0:00:09.8]} 44. Rh3
{[%clk 0:01:15]} 44... Rf4 {[%clk 0:00:08.7]} 45. Kg2 {[%clk 0:01:14.7]} 45...
Kg6 {[%clk 0:00:09]} 46. Rf3 {[%clk 0:01:15.1]} 46... Rxf3 {[%clk 0:00:07.2]}
47. Kxf3 {[%clk 0:01:16]} 47... b5 {[%clk 0:00:08.8]} 48. Kg4 {[%clk 0:01:08.4]}
48... Rf6 {[%clk 0:00:10.4]} 49. Re4 {[%clk 0:01:07.1]} 49... Rc6 {[%clk
0:00:11.4]} 50. Rd4 {[%clk 0:01:07.5]} 50... Rf6 {[%clk 0:00:12.4]} 51. a4
{[%clk 0:01:08.4]} 51... bxa4 {[%clk 0:00:12.8]} 52. Rxa4 {[%clk 0:01:09.2]}
52... Rb6 {[%clk 0:00:14.3]} 53. Ra2 {[%clk 0:01:05.8]} 53... Rc6 {[%clk
0:00:14.1]} 54. Ra5 {[%clk 0:01:04.2]} 54... Rc4+ {[%clk 0:00:14.5]} 55. Kg3
{[%clk 0:01:04.7]} 55... Rc6 {[%clk 0:00:16.2]} 56. Kf3 {[%clk 0:01:04.8]} 56...
Rb6 {[%clk 0:00:16.9]} 57. Ra2 {[%clk 0:00:59.7]} 57... Kh5 {[%clk 0:00:16.9]}
58. Kg3 {[%clk 0:01:00.2]} 58... Rd6 {[%clk 0:00:17.7]} 59. c4 {[%clk
0:00:58.5]} 59... Rd4 {[%clk 0:00:07.2]} 60. c5 {[%clk 0:00:56]} 60... Rc4
{[%clk 0:00:06.8]} 61. Ra5 {[%clk 0:00:55.9]} 61... Rc2 {[%clk 0:00:05.1]} 62.
b4 {[%clk 0:00:54.7]} 62... Rc3+ {[%clk 0:00:06.4]} 63. Kf2 {[%clk 0:00:54.7]}
63... Rc4 {[%clk 0:00:07.7]} 64. Ra4 {[%clk 0:00:50.8]} 64... Kh4 {[%clk
0:00:08.1]} 65. Rxa6 {[%clk 0:00:51.3]} 65... Rxb4 {[%clk 0:00:09.3]} 66. Rh6+
{[%clk 0:00:51.3]} 66... Kg4 {[%clk 0:00:10.2]} 67. c6 {[%clk 0:00:52.7]} 67...
Rc4 {[%clk 0:00:11.8]} 68. Rd6 {[%clk 0:00:52.2]} 68... Rc2+ {[%clk 0:00:12]}
69. Kg1 {[%clk 0:00:50.8]} 69... Kh3 {[%clk 0:00:12.9]} 70. Rh6+ {[%clk
0:00:49.5]} 70... Kg3 {[%clk 0:00:13.8]} 71. Kf1 {[%clk 0:00:48.1]} 71... g4
{[%clk 0:00:14]} 72. Rd6 {[%clk 0:00:47.9]} 72... Kh2 {[%clk 0:00:12.8]} 73.
Rh6+ {[%clk 0:00:46.7]} 73... Kg3 {[%clk 0:00:13.8]} 74. Rd6 {[%clk 0:00:47.6]}
74... Rc1+ {[%clk 0:00:14.1]} 75. Ke2 {[%clk 0:00:47.4]} 75... Kh2 {[%clk
0:00:15.6]} 76. Kf2 {[%clk 0:00:22.2]} 76... g3+ {[%clk 0:00:13.8]} 77. Kf3
{[%clk 0:00:23.6]} 77... g2 {[%clk 0:00:11.5]} 78. Rh6+ {[%clk 0:00:24]} 78...
Kg1 {[%clk 0:00:13]} 79. Rg6 {[%clk 0:00:23.5]} 79... Rc3+ {[%clk 0:00:04.9]}
80. Ke4 {[%clk 0:00:24.6]} 80... Kf1 {[%clk 0:00:06.4]} 81. Rf6+ {[%clk
0:00:23.5]} 81... Ke2 {[%clk 0:00:06.2]} 82. Rg6 {[%clk 0:00:24]} 82... Kf2
{[%clk 0:00:07.6]} 83. Rf6+ {[%clk 0:00:22.2]} 83... Ke2 {[%clk 0:00:07.3]} 84.
Rg6 {[%clk 0:00:21.5]} 84... Kf2 {[%clk 0:00:06.6]} 85. Kd5 {[%clk 0:00:19.9]}
85... Rd3+ {[%clk 0:00:04.4]} 86. Ke6 {[%clk 0:00:19]} 86... Rg3 {[%clk
0:00:05.2]} 87. Rf6+ {[%clk 0:00:18.5]} 87... Ke2 {[%clk 0:00:05]} 88. c7 {[%clk
0:00:17]} 88... g1=Q {[%clk 0:00:06.4]} 89. c8=Q {[%clk 0:00:16.5]} 89... Qb6+
{[%clk 0:00:04.6]} 90. Kf7 {[%clk 0:00:15.5]} 90... Qa7+ {[%clk 0:00:05]} 91.
Ke6 {[%clk 0:00:13.1]} 91... Re3+ {[%clk 0:00:05.6]} 92. Kf5 {[%clk 0:00:12.8]}
92... Qh7+ {[%clk 0:00:05.9]} 93. Kg5 {[%clk 0:00:10.4]} 93... Rg3+ {[%clk
0:00:06.7]} 94. Kf4 {[%clk 0:00:11.6]} 94... Qh4+ {[%clk 0:00:07.7]} 95. Ke5
{[%clk 0:00:12.6]} 95... Re3+ {[%clk 0:00:09]} 96. Kd5 {[%clk 0:00:12.5]} 96...
Rd3+ {[%clk 0:00:09.4]} 97. Ke6 {[%clk 0:00:12.5]} 97... Qg4+ {[%clk 0:00:09.1]}
98. Rf5 {[%clk 0:00:12.5]} 98... Qg6+ {[%clk 0:00:10.5]} 99. Ke5 {[%clk
0:00:12.8]} 99... Qg7+ {[%clk 0:00:09]} 100. Ke6 {[%clk 0:00:13.3]} 100... Qg6+
{[%clk 0:00:08.7]} 101. Ke5 {[%clk 0:00:14.5]} 101... Re3+ {[%clk 0:00:09.9]}
102. Kd5 {[%clk 0:00:15.2]} 102... Rd3+ {[%clk 0:00:08.5]} 103. Ke5 {[%clk
0:00:16.3]} 103... Qg3+ {[%clk 0:00:09.8]} 104. Ke6 {[%clk 0:00:16.8]} 104...
Rd6+ {[%clk 0:00:11.1]} 105. Ke7 {[%clk 0:00:16.7]} 105... Rd2 {[%clk
0:00:04.5]} 106. Qc4+ {[%clk 0:00:17.1]} 106... Qd3 {[%clk 0:00:03.6]} 107. Re5+
{[%clk 0:00:18]} 107... Kd1 {[%clk 0:00:04.5]} 108. Qa4+ {[%clk 0:00:18.1]}
108... Qc2 {[%clk 0:00:04.4]} 109. Qa1+ {[%clk 0:00:18.5]} 109... Qc1 {[%clk
0:00:05]} 110. Re1+ {[%clk 0:00:19.6]} 110... Kxe1 {[%clk 0:00:06.9]} 111. Qxc1+
{[%clk 0:00:20.9]} 111... Ke2 {[%clk 0:00:08.6]} 112. Qc4+ {[%clk 0:00:22.2]}
112... Rd3 {[%clk 0:00:10.1]} 113. Ke6 {[%clk 0:00:23.4]} 113... Kd2 {[%clk
0:00:11.4]} 114. Qb4+ {[%clk 0:00:24.4]} 114... Ke2 {[%clk 0:00:12]} 115. Qb2+
{[%clk 0:00:25.5]} 115... Ke3 {[%clk 0:00:12.6]} 116. Qc1+ {[%clk 0:00:26.2]}
116... Ke4 {[%clk 0:00:12.4]} 117. Qc2 {[%clk 0:00:24.7]} 117... Kd4 {[%clk
0:00:11.4]} 118. Qf2+ {[%clk 0:00:24.3]} 118... Ke4 {[%clk 0:00:10.4]} 119. Qf5+
{[%clk 0:00:23.8]} 119... Ke3 {[%clk 0:00:11.9]} 120. Ke5 {[%clk 0:00:25.1]}
120... Ke2 {[%clk 0:00:11.3]} 121. Qg4+ {[%clk 0:00:22.8]} 121... Kd2 {[%clk
0:00:11.7]} 122. Ke4 {[%clk 0:00:23.7]} 122... Re3+ {[%clk 0:00:12.9]} 123. Kd4
{[%clk 0:00:23.6]} 123... Rd3+ {[%clk 0:00:14.3]} 124. Ke4 {[%clk 0:00:25.1]}
124... Re3+ {[%clk 0:00:15.5]} 125. Kf4 {[%clk 0:00:25.9]} 125... Rd3 {[%clk
0:00:14.4]} 126. Qg2+ {[%clk 0:00:25.3]} 126... Kc3 {[%clk 0:00:15.1]} 127. Qc6+
{[%clk 0:00:26.1]} 127... Kd2 {[%clk 0:00:16.1]} 128. Qc5 {[%clk 0:00:24.8]}
128... Rc3 {[%clk 0:00:12.6]} 129. Qd4+ {[%clk 0:00:22.6]} 129... Rd3 {[%clk
0:00:13.7]} 130. Qb4+ {[%clk 0:00:23.7]} 130... Ke2 {[%clk 0:00:13.3]} 131. Qb2+
{[%clk 0:00:23.1]} 131... Rd2 {[%clk 0:00:12.3]} 132. Qe5+ {[%clk 0:00:23.4]}
132... Kd3 {[%clk 0:00:12.4]} 133. Qb5+ {[%clk 0:00:24.5]} 133... Kc3 {[%clk
0:00:12.9]} 134. Ke3 {[%clk 0:00:25.6]} 134... Rc2 {[%clk 0:00:11.4]} 135. Qe5+
{[%clk 0:00:23.7]} 135... Kb4 {[%clk 0:00:05.8]} 136. Kd3 {[%clk 0:00:23.9]}
136... Rc4 {[%clk 0:00:06.9]} 137. Qd6+ {[%clk 0:00:24]} 137... Kb5 {[%clk
0:00:07.8]} 138. Qd4 {[%clk 0:00:25.9]} 138... Rxd4+ {[%clk 0:00:08.5]} 139.
Kxd4 {[%clk 0:00:27.4]} 1/2-1/2

[Event "*** Titled Tuesday 3|2 Blitz"]
[Site "Chess.com"]
[Date "2015.03.03"]
[Round "3"]
[White "Colombiano07"]
[Black "lukas_111111"]
[Result "0-1"]
[WhiteElo "1970"]
[BlackElo "2278"]
[TimeControl "180+2"]
[EndTime "11:31:41 PST"]
[Termination "lukas_111111 won by resignation"]

1. e4 {[%clk 0:02:47.6]} 1... c5 {[%clk 0:02:56.6]} 2. Nf3 {[%clk 0:02:48.2]}
2... e6 {[%clk 0:02:56.7]} 3. d4 {[%clk 0:02:49.3]} 3... cxd4 {[%clk 0:02:57.9]}
4. Nxd4 {[%clk 0:02:51.2]} 4... Nc6 {[%clk 0:02:59.3]} 5. Nc3 {[%clk 0:02:51.9]}
5... Qc7 {[%clk 0:03:00.5]} 6. g3 {[%clk 0:02:51.8]} 6... a6 {[%clk 0:03:00.3]}
7. Bg2 {[%clk 0:02:52.6]} 7... d6 {[%clk 0:03:01.7]} 8. O-O {[%clk 0:02:52.4]}
8... Bd7 {[%clk 0:03:02.8]} 9. Re1 {[%clk 0:02:53.3]} 9... Be7 {[%clk
0:02:59.3]} 10. Nxc6 {[%clk 0:02:53.2]} 10... Bxc6 {[%clk 0:03:00]} 11. Qg4
{[%clk 0:02:49.1]} 11... h5 {[%clk 0:03:00.7]} 12. Qe2 {[%clk 0:02:41.2]} 12...
h4 {[%clk 0:03:01.7]} 13. Qg4 {[%clk 0:02:41.4]} 13... hxg3 {[%clk 0:02:51.2]}
14. Qxg7 {[%clk 0:02:17]} 14... gxf2+ {[%clk 0:02:35.3]} 15. Kxf2 {[%clk
0:02:18.9]} 15... Bf6 {[%clk 0:02:36.2]} 16. Qg3 {[%clk 0:02:11.7]} 16... Bh4
{[%clk 0:02:36.7]} 0-1

[Event "*** Titled Tuesday 3|2 Blitz"]
[Site "Chess.com"]
[Date "2015.03.03"]
[Round "3"]
[White "vinceyoung15"]
[Black "gumersindo"]
[Result "1-0"]
[WhiteElo "2121"]
[BlackElo "2088"]
[TimeControl "180+2"]
[EndTime "11:32:59 PST"]
[Termination "vinceyoung15 won by checkmate"]

1. e4 {[%clk 0:02:59.2]} 1... e5 {[%clk 0:02:58.4]} 2. Nf3 {[%clk 0:02:59.5]}
2... Nc6 {[%clk 0:02:59.2]} 3. Bb5 {[%clk 0:03:00.4]} 3... a6 {[%clk 0:02:59.3]}
4. Ba4 {[%clk 0:03:01]} 4... Nf6 {[%clk 0:02:59.5]} 5. d3 {[%clk 0:03:01.7]}
5... b5 {[%clk 0:02:57.4]} 6. Bb3 {[%clk 0:03:01.6]} 6... Be7 {[%clk 0:02:58.9]}
7. c3 {[%clk 0:03:02.3]} 7... O-O {[%clk 0:02:59.2]} 8. Nbd2 {[%clk 0:03:03.9]}
8... d6 {[%clk 0:02:59.8]} 9. Nf1 {[%clk 0:03:05]} 9... Na5 {[%clk 0:02:57.6]}
10. Bc2 {[%clk 0:03:05.1]} 10... c5 {[%clk 0:02:59.1]} 11. Ng3 {[%clk
0:03:05.4]} 11... Nc6 {[%clk 0:02:51.5]} 12. O-O {[%clk 0:03:05.7]} 12... b4
{[%clk 0:02:48.3]} 13. d4 {[%clk 0:03:05.2]} 13... Bg4 {[%clk 0:02:38]} 14. d5
{[%clk 0:03:04.5]} 14... Nb8 {[%clk 0:02:36.5]} 15. h3 {[%clk 0:03:05.3]} 15...
Bd7 {[%clk 0:02:34.9]} 16. Nh2 {[%clk 0:03:01.3]} 16... Bb5 {[%clk 0:02:34.6]}
17. Re1 {[%clk 0:03:00.4]} 17... a5 {[%clk 0:02:34.5]} 18. f4 {[%clk 0:03:01.4]}
18... Nbd7 {[%clk 0:02:32.8]} 19. Ng4 {[%clk 0:03:00.5]} 19... Nxg4 {[%clk
0:02:28.3]} 20. Qxg4 {[%clk 0:03:00.1]} 20... Nf6 {[%clk 0:02:12.8]} 21. Qf3
{[%clk 0:02:59.2]} 21... exf4 {[%clk 0:02:13.3]} 22. Bxf4 {[%clk 0:02:59.7]}
22... Nd7 {[%clk 0:02:13.8]} 23. Nf5 {[%clk 0:02:59.2]} 23... Nf6 {[%clk
0:02:11.8]} 24. Rad1 {[%clk 0:02:53.3]} 24... g6 {[%clk 0:02:12.2]} 25. Bh6
{[%clk 0:02:49.8]} 25... Re8 {[%clk 0:02:11.5]} 26. Nxe7+ {[%clk 0:02:43.9]}
26... Qxe7 {[%clk 0:02:11.4]} 27. Bg5 {[%clk 0:02:44.7]} 27... bxc3 {[%clk
0:01:54.7]} 28. Bxf6 {[%clk 0:02:41.8]} 28... Qd7 {[%clk 0:01:54.9]} 29. Qf4
{[%clk 0:02:39.2]} 29... Re5 {[%clk 0:01:48.2]} 30. Qh6 {[%clk 0:02:37.8]} 30...
Rh5 {[%clk 0:01:49.4]} 31. Qg7# {[%clk 0:02:38.9]} 1-0

[Event "*** Titled Tuesday 3|2 Blitz"]
[Site "Chess.com"]
[Date "2015.03.03"]
[Round "3"]
[White "chesstatour"]
[Black "kinetix"]
[Result "1-0"]
[WhiteElo "1888"]
[BlackElo "1459"]
[TimeControl "180+2"]
[EndTime "11:33:14 PST"]
[Termination "chesstatour won by resignation"]

1. d4 {[%clk 0:03:00]} 1... d6 {[%clk 0:02:54.7]} 2. Nf3 {[%clk 0:02:49.4]} 2...
g6 {[%clk 0:02:53.6]} 3. e4 {[%clk 0:02:49.2]} 3... c6 {[%clk 0:02:52.7]} 4. Bc4
{[%clk 0:02:48.9]} 4... d5 {[%clk 0:02:47.7]} 5. exd5 {[%clk 0:02:49]} 5... cxd5
{[%clk 0:02:48.6]} 6. Bb5+ {[%clk 0:02:50.1]} 6... Bd7 {[%clk 0:02:47]} 7. Bxd7+
{[%clk 0:02:49.7]} 7... Qxd7 {[%clk 0:02:40.8]} 8. Ne5 {[%clk 0:02:40.4]} 8...
Qd8 {[%clk 0:02:05.2]} 9. Qf3 {[%clk 0:02:21]} 9... Nf6 {[%clk 0:02:02.4]} 10.
Nc3 {[%clk 0:02:05.4]} 10... Bg7 {[%clk 0:01:58.6]} 11. O-O {[%clk 0:02:03.1]}
11... O-O {[%clk 0:01:58.5]} 12. Bg5 {[%clk 0:02:02.7]} 12... Nc6 {[%clk
0:01:25.4]} 13. Rad1 {[%clk 0:02:01.4]} 13... e6 {[%clk 0:01:19.4]} 14. Ng4
{[%clk 0:01:48.7]} 1-0

[Event "*** Titled Tuesday 3|2 Blitz"]
[Site "Chess.com"]
[Date "2015.03.03"]
[Round "3"]
[White "GMHess"]
[Black "FabianEnglert"]
[Result "1-0"]
[WhiteElo "2464"]
[BlackElo "2237"]
[TimeControl "180+2"]
[EndTime "11:33:26 PST"]
[Termination "GMHess won by resignation"]

1. e4 {[%clk 0:02:28.2]} 1... c5 {[%clk 0:02:58.1]} 2. Nc3 {[%clk 0:02:27.8]}
2... a6 {[%clk 0:02:58.6]} 3. g3 {[%clk 0:02:26.1]} 3... b5 {[%clk 0:02:59]} 4.
Bg2 {[%clk 0:02:27.7]} 4... Bb7 {[%clk 0:03:00.1]} 5. Nge2 {[%clk 0:02:28.5]}
5... e6 {[%clk 0:03:01.1]} 6. O-O {[%clk 0:02:29.6]} 6... Nf6 {[%clk 0:02:56.4]}
7. d3 {[%clk 0:02:25.9]} 7... b4 {[%clk 0:02:55.5]} 8. Na4 {[%clk 0:02:26.1]}
8... d6 {[%clk 0:02:50.6]} 9. Nf4 {[%clk 0:02:13.3]} 9... Nbd7 {[%clk
0:02:43.9]} 10. a3 {[%clk 0:02:09]} 10... a5 {[%clk 0:02:26.9]} 11. Re1 {[%clk
0:02:10.1]} 11... Bc6 {[%clk 0:02:25.6]} 12. c3 {[%clk 0:01:48.6]} 12... Rc8
{[%clk 0:01:51.7]} 13. d4 {[%clk 0:01:38.9]} 13... cxd4 {[%clk 0:01:29.2]} 14.
cxd4 {[%clk 0:01:40.8]} 14... d5 {[%clk 0:01:30.4]} 15. exd5 {[%clk 0:01:37.9]}
15... Bxa4 {[%clk 0:01:28.3]} 16. Qxa4 {[%clk 0:01:39.8]} 1-0